Cogmind - Beta 13 @@@ ROGUE MODE // 2024.04.03 @ 18:19:54 Player: CocoWaff Result: Destroyed by Y-45 Defender with Heavy Assault Rifle Performance ------------- Evolutions (1) 500 Regions Visited (2) 400 Robots Destroyed (13) 65 Value Destroyed (369) 369 Prototype IDs (0) 0 Alien Tech Used (0) 0 Bonus (0) 0 TOTAL SCORE: 1334 Bonus ------- None Cogmind --------- Core Integrity 0/400 Matter 290/300 Energy 100/100 System Corruption 5% Temperature Cool (9) Movement Treading (240) Ox1 Location -9/Materials Parts ------- > --- POWER (2) -------- (None) > --- PROPULSION (2) --- Light Treads > --- UTILITY (2) ------ Large Storage Unit Light Armor Plating > --- WEAPON (3) ------- (None) > --- INVENTORY (15) --- (None) Peak State ------------ > --- POWER ------------ Light Ion Engine > --- PROPULSION ------- Wheel Wheel > --- UTILITY ---------- Large Storage Unit > --- WEAPON ----------- Small Laser Grenade Launcher > --- INVENTORY -------- Hover Unit Small Laser Assault Rifle [Rating: 6] Favorites ----------- Power Light Ion Engine Engine Light Ion Engine Propulsion Wheel Treads Light Treads Wheel Wheel Hover Unit Hover Unit Utility Large Storage Unit Storage Large Storage Unit Protection Light Armor Plating Weapon Small Laser Energy Gun Small Laser Ballistic Gun Assault Rifle Launcher Grenade Launcher Build | -11 -10 -9 ------- Run | Yrd Mat Mat Slots Evolved 2 | . . 2 Power 1 | . . 1 Propulsion . | . . . Utility . | . . . Weapon 1 | . . 1 Parts Attached 13 | 5 2 6 Power 2 | 1 . 1 Engine 2 | 1 . 1 Core . | . . . Reactor . | . . . Propulsion 4 | 2 . 2 Treads 1 | . . 1 Leg . | . . . Wheel 2 | 2 . . Hover 1 | . . 1 Flight . | . . . Utility 2 | . 1 1 Device . | . . . Storage 1 | . 1 . Processor . | . . . Hackware . | . . . Protection 1 | . . 1 Artifact . | . . . Weapon 5 | 2 1 2 Energy Gun 3 | 2 . 1 Energy Cannon . | . . . Ballistic Gun 1 | . . 1 Ballistic Cannon . | . . . Launcher 1 | . 1 . Special Weapon . | . . . Impact Weapon . | . . . Slashing Weapon . | . . . Piercing Weapon . | . . . Special Melee Weapon . | . . . Unidentified Prototypes . | . . . Parts Lost 9 | . . 9 Power 2 | . . 2 Propulsion 3 | . . 3 Utility . | . . . Weapon 4 | . . 4 Highest Loss Streak 7 | . . 7 To Critical Strikes . | . . . Average Slot Usage (%) 54 | . 72 43 Engine 9 | . 14 6 Treads 2 | . . 4 Wheel 15 | . 28 7 Hover 1 | . . 3 Storage 7 | . 1 11 Energy Gun 9 | . 14 5 Launcher 7 | . 13 3 Naked Turns . | . . . Heaviest Build 27 | 5 27 27 Greatest Support 20 | 20 20 20 Greatest Overweight (x) 6 | . 1 6 Average Overweight (x) . | . . . Largest Inventory Capacity 15 | 5 15 15 Average Capacity 10 | 5 6 15 Most Carried 5 | 3 4 5 Average Carried 2 | . 2 2 Final Capacity 15 | 5 15 15 Final Carried 3 | 1 3 . Class Distribution -------------------- 100% | Mutant Dominant Class ---------------- Mutant | -10/Materials Mutant | -9/Materials Resources | -11 -10 -9 ----------- Run | Yrd Mat Mat Matter Collected 347 | 250 20 77 Remotely . | . . . Salvage Created 424 | 44 135 245 Parts 27 | 2 5 20 Haulers Intercepted . | . . . Recyclers Shooed . | . . . Parts Field Recycled . | . . . Retrieved Matter . | . . . Parts Self-Destructed . | . . . Prevented . | . . . Kills | -11 -10 -9 ------- Run | Yrd Mat Mat Combat Hostiles Destroyed 12 | 1 4 7 Guns 11 | 1 3 7 AOE 1 | . 1 . Classes Destroyed 4 | 1 . 3 Worker 1 | . . 1 Swarmer 3 | . . 3 Grunt 7 | 1 4 2 Sentry 2 | . . 2 Best Kill Streak 7 | 1 3 7 Combat Bots Only 6 | 1 3 6 Max Kills in Single Turn 1 | 1 1 1 Gunslinging . | . . . Exploded 1 | . 1 . Melee . | . . . Uniques/NPCs Destroyed . | . . . Combat | -11 -10 -9 -------- Run | Yrd Mat Mat Hostile Shots Fired 112 | 4 14 94 Missed 32 | 1 4 27 Damage Taken 1241 | 32 112 1097 Core 427 | . 22 405 Absorbed by Shields . | . . . Core Remaining (%) 95 | 100 91 . Volleys Fired 48 | 2 14 32 Largest 2 | 2 2 2 Hottest 80 | 80 70 60 Shots Fired 58 | 3 15 40 Gun 56 | 3 14 39 Cannon . | . . . Launcher 2 | . 1 1 Special . | . . . Kinetic 14 | . . 14 Thermal 42 | 3 14 25 Explosive 2 | . 1 1 Electromagnetic . | . . . Robot Hit Streak 11 | 3 10 11 Robot Miss Streak 1 | . 1 1 Penetration Max . | . . . Secondary Targets . | . . . Shots Hit Robots 49 | 3 12 34 Core Hits 22 | 2 8 12 Critical Kills . | . . . Critical Parts Destroyed . | . . . Critical Strikes . | . . . Melee Attacks . | . . . Impact . | . . . Slashing . | . . . Piercing . | . . . Sneak Attacks . | . . . Combat Hostiles . | . . . Follow-up Attacks . | . . . Damage Inflicted 701 | 33 219 449 Guns 550 | 33 126 391 Cannons . | . . . Explosions 151 | . 93 58 Melee . | . . . Ramming . | . . . Kinetic 162 | . . 162 Thermal 388 | 33 126 229 Explosive 151 | . 93 58 Electromagnetic . | . . . Impact . | . . . Slashing . | . . . Piercing . | . . . Highest Corruption 5 | . . 5 Average Corruption 5 | . . 5 Corruption Purged . | . . . Corruption Blocked . | . . . Effects 2 | . . 2 Message Errors 2 | . . 2 Overload Shots . | . . . Overflow Damage 12 | . . 12 Projectiles . | . . . Explosions 12 | . . 12 Melee . | . . . Knockbacks . | . . . Impact . | . . . Kinetic . | . . . Secondary . | . . . Self-Inflicted Damage 15 | . . 15 Shots 1 | . . 1 Rammed . | . . . Targets Rammed . | . . . Kicked . | . . . Crushed . | . . . Highest Temperature 24 | 24 18 6 Average Temperature 9 | 12 11 3 Received Heat Transfer 267 | 18 60 189 Siege Activations . | . . . Robots Corrupted . | . . . Combat Hostiles . | . . . Parts Fried . | . . . Impact Corruptions . | . . . Robots Melted . | . . . Combat Hostiles . | . . . Parts Melted 3 | . . 3 Heat Transferred 875 | 75 275 525 Parts Sabotaged . | . . . Parts Stolen . | . . . Parts Stripped . | . . . Power Chain Reactions . | . . . Alert | -11 -10 -9 ------- Run | Yrd Mat Mat Peak Influence 238 | 20 150 238 Initial 63 | . 13 63 Average 109 | 1 66 170 Maximum Alert Level 1 | . . 1 Low Security (%) 73 | 100 100 49 Level 1 26 | . . 50 Level 2 . | . . . Level 3 . | . . . Level 4 . | . . . Level 5 . | . . . High Security . | . . . Max Security . | . . . Squads Dispatched 2 | . 2 . Investigation 1 | . 1 . Extermination . | . . . Reinforcement 1 | . 1 . Assault . | . . . Garrison . | . . . Intercept . | . . . Searches Triggered . | . . . Construction Impeded . | . . . Haulers Reinforced . | . . . Active Scanning Responses . | . . . Cargo Convoy Interrupts . | . . . Stealth | -11 -10 -9 --------- Run | Yrd Mat Mat Distress Signals . | . . . Communications Jammed . | . . . Distress Signals . | . . . Times Spotted 16 | 1 5 10 Peak Tracking Total 5 | 1 4 5 Tactical Retreats 2 | . 1 1 Traps | -11 -10 -9 ------- Run | Yrd Mat Mat Traps Triggered 1 | . 1 . Indirectly . | . . . Trap Hack Attempts . | . . . Triggered . | . . . Disarmed . | . . . Reprogrammed . | . . . Reused . | . . . Traps Extracted . | . . . Installed . | . . . Triggered . | . . . Machines | -11 -10 -9 ---------- Run | Yrd Mat Mat Machines Disabled 1 | . 1 . Max in Single Turn 1 | . 1 . Machines Repaired . | . . . Machines Dismantled . | . . . Machines Sabotaged . | . . . Overloaded Fab Kills . | . . . Hacking | -11 -10 -9 --------- Run | Yrd Mat Mat Machines Accessed . | . . . Terminals . | . . . Fabricators . | . . . Repair Stations . | . . . Recycling Units . | . . . Scanalyzers . | . . . Garrison Access . | . . . Total Hacks . | . . . Successful . | . . . Failed . | . . . Catastrophic . | . . . Database Lockouts . | . . . Manual . | . . . Terminals . | . . . Fabricators . | . . . Repair Stations . | . . . Recycling Units . | . . . Scanalyzers . | . . . Garrison Access . | . . . Terminal Hacks . | . . . Fabricator Hacks . | . . . Repair Station Hacks . | . . . Recycling Unit Hacks . | . . . Scanalyzer . | . . . Garrison Access Hacks . | . . . Unauthorized Hacks . | . . . Terminals . | . . . Fabricators . | . . . Repair Stations . | . . . Recycling Units . | . . . Scanalyzers . | . . . Garrison Access . | . . . Data Cores Recovered . | . . . Used . | . . . Hacking Detections . | . . . Full Trace Events . | . . . Feedback Events . | . . . Feedback Blocked . | . . . Robot Schematics Acquired . | . . . Robots Built . | . . . Authchips . | . . . Time . | . . . Total Robot Build Rating . | . . . Part Schematics Acquired . | . . . Parts Built . | . . . Authchips . | . . . Time . | . . . Total Part Build Rating . | . . . Parts Repaired . | . . . Time . | . . . Parts Recycled . | . . . Recycled Matter . | . . . Retrieved Matter . | . . . Retrieved Components . | . . . Parts Scanalyzed . | . . . Part Schematics Acquired . | . . . Parts Damaged . | . . . Bothacking | -11 -10 -9 ------------ Run | Yrd Mat Mat Used RIF Installer . | . . . Robots Hacked . | . . . Non-combat . | . . . Combat . | . . . Robot Hacks Applied . | . . . Relay Couplers Released . | . . . Fabnet Peak Effective % . | . . . Robots Rewired . | . . . Allies Hacked . | . . . Hacks Repelled . | . . . Allies | -11 -10 -9 -------- Run | Yrd Mat Mat Total Allies . | . . . Largest Group . | . . . Highest-Rated Group . | . . . Highest-Rated Ally . | . . . Total Orders . | . . . Ally Attacks . | . . . Total Damage . | . . . Kills . | . . . Allies Corrupted . | . . . Allies Melted . | . . . Intel | -11 -10 -9 ------- Run | Yrd Mat Mat Robot Analysis Total . | . . . Derelict Logs Recovered . | . . . Drone Launches . | . . . Drone Recoveries . | . . . Exploration | -11 -10 -9 ------------- Run | Yrd Mat Mat Turns Passed 480 | 78 154 248 Spaces Moved 340 | 79 147 114 Core 18 | 17 . 1 Treads 49 | . . 49 Legs . | . . . Wheels 271 | 62 147 62 Hover 2 | . . 2 Flight . | . . . Fastest Speed 50 | 50 80 95 Average Speed 101 | 73 81 147 Slowest Speed 350 | 80 95 350 Overloaded Moves . | . . . Propulsion Burnouts . | . . . Robots Hopped . | . . . Cave-ins Triggered . | . . . Exploration Rate (%) 12 | 5 20 11 Regions Visited 2 Branch Regions . Pre-discovered Areas . | . . . Known Exits Taken . | . . . Unknown Exits Taken 2 | 1 1 . Scrap Searched . | . . . Spaces Dug . | . . . Terrain Destroyed 16 | . 6 10 Melee . | . . . Projectile . | . . . AOE 16 | . 6 10 Terrain Rammed . | . . . Walls Destroyed . | . . . Machines Disabled . | . . . Actions | -11 -10 -9 --------- Run | Yrd Mat Mat Total 415 | 95 165 155 Wait 4 | 4 . . Move 338 | 78 146 114 Hop . | . . . Pick Up 12 | 6 3 3 Fast Attach . | . . . Attach 12 | 5 1 6 Detach . | . . . Swap 1 | . 1 . Drop . | . . . Fire 48 | 2 14 32 Melee . | . . . Ram . | . . . Kick . | . . . Crush . | . . . Escape Stasis . | . . . Rewire . | . . . Trap . | . . . Miscellaneous . | . . . Route ------- -11/Scrapyard -10/Materials -9/Materials (discovered 1 exit: [*Min]) History --------- Turn | Location | Event 2 | -11/Scrapyard | Met Revision 17 63 | -11/Scrapyard | Discovered new exit (range 8) 79 | -11/Scrapyard | Entered Materials 220 | -10/Materials | Discovered new exit (range 15) 233 | -10/Materials | Entered another Materials area 233 | -9/Materials | Evolved 2 slots: Power x1, Weapon x1 306 | -9/Materials | Discovered new exit (range 7) 313 | -9/Materials | Build established: Mutant 350 | -9/Materials | Core integrity fell below 50% 402 | -9/Materials | Lost 7 parts (1p2n4w) 435 | -9/Materials | Core integrity fell below 20% 481 | -9/Materials | Destroyed by Y-45 Defender with Heavy Assault Rifle Last Messages --------------- Y-45 Defender destroyed. G-34 Mercenary destroyed. U-05 Engineer builds a Wall. Sml. Laser destroyed. System corrupted by crushing effect (+5). Acquired 41 matter. Different forms of propulsion may not be used simultaneously, Hover Unit automatically deactivated. Acquired Ion Engine. Acquired 26 matter. 3MG MESSCQUFP,FVQ7KQ:LEM/F Hover Unit destroyed. Critical hit (Burn: +37). Hadron Collector disabled. XQWBK ZSDMOTTPV=>UURTYFY/YF3HBQT#DFV8QG Bump into an interactive machine at the letter-containing square to access it. Ion Engine destroyed. [Achievement: First Step to Greatness] Map ----- +----------------------------------------------------+ | ???????????????????????????????????????????????? | | ???????????????????????????????????????????????? | | ???????????????????????????????????????????????? | | ???????????????????????????????????????????????? | | ?????????????????????? ????????????????????????? | | ?????????????????????? ????????????????????????? | | ?????????????????????? #???????????????????????? | | ?????????????????????? #???????????????????????? | | ?????????????????????? #???????????????????????? | | ?????????????????????? #???????????????????????? | | ???????????????????### ###?????????????????????? | | ??????????????????## #?????????????????????? | | ??????????????????# | #?????????????????????? | | ??????????????????## < #?????????????????????? | | ??????????????????## #?????????????????????? | | ?????????###??????##*% #?????????????????????? | | ??????#### ########## ##?????????????????????? | | ??????# ==# ##?????????????????????? | | ??????# ==%# ##?????????????????????? | | ??????# """ """ """%+ #??????????????????????? | | ??????# """ """ """ #= #??????????????????????? | | ??????# """ """!""[!# #??????????????????????? | | ??????# % = !%=# #??????????????????????? | | ??????##/############ ##########?????????????? | | ?????### ############ # #?????????????? | | ?????# Y @# "" #?????????????? | | ?????# + """ #?????????????? | | ?????# """" "" # S" #?????????????? | | ?????# """" " "" # #?????????????? | | ?????# """" """" # """ #?????????????? | | ?????## # """ #?????????????? | | ??????# # """ #?????????????? | | ####### """" """" # #?????????????? | | # # """" """" ##########?????????????? | | # # """" """" #??????????????????????? | | # # #??????????????????????? | | # !# #??????????????????????? | | #""" # #??????????????????????? | | #""" + #??????????????????????? | | #""" # #??????????????????????? | | #""" # ###+######+####??????????????????????? | | #""" # #????????????????????????????????????? | | # # #????????????????????????????????????? | | #[ !# #????????????????????????????????????? | | # #####????????????????????????????????????? | | #######????????????????????????????????????????? | | ???????????????????????????????????????????????? | | ???????????????????????????????????????????????? | | ???????????????????????????????????????????????? | | ???????????????????????????????????????????????? | +----------------------------------------------------+ Best States ------------- Heat Dissipation 28 Energy Generation 10 Energy Capacity 250 Matter Stores 300 Matter Capacity 300 Sight Range 16 Terrain Scan Density 10 Armor Coverage 150 Evasion (%) 50 Recoil Reduction 1 Item Schematics ----------------- None Robot Schematics ------------------ None Fabricated ------------ Nothing Alien Tech Used ----------------- None Achievements -------------- Crack Shot First Step to Greatness Uninvited Guest Challenges ------------ None Game ------ Seed SystemRemoteBlaster Manual? 0 Play Time 00:32:30 Cumulative 0.5 hours Start 2024.04.03 @ 16:02:13 End 2024.04.03 @ 18:19:54 Sessions 1 Manual Loads 0 Difficulty Rogue Special Mode None Game No. 1 Rogue 1 Adventurer 0 Explorer 0 Win Type - Total 0 Types 0/0/0/0/0/0/0/0/0 Lore% 0 Gallery% 1 Achievement% 1 Wizard Run 0 Options --------- Layout 1 ASCII 1 Keyboard 0 Movement Mouse Keybinds 0 Fullscreen 2 Font 24/Smallcaps Map View 50x35 Zoom Use 0% Tactical HUD 0 Map Filters NONE Filters NONE Steam 1 RUN: 1c0e5939-a7de-4b48-85c8-e67439649be0